[Event "9th RTU Open 2019"]
[Site "Riga"]
[Date "2019.08.09"]
[Round "7.23"]
[White "Narva, Mai"]
[Black "Jurcik, Marian"]
[Result "1/2-1/2"]
[ECO "B83"]
[WhiteElo "2358"]
[BlackElo "2501"]
[Annotator "ChessBase"]
[PlyCount "90"]
[EventDate "2019.08.05"]
[EventType "swiss"]
[EventCountry "LAT"]
[SourceTitle "playchess.com"]
[Source "ChessBase"]
[SourceQuality "1"]
[TimeControl "5400+30"]

1. e4 {[%emt 0:00:00]} c5 {[%emt 0:00:00]} 2. Nf3 {[%emt 0:00:00]} d6 {[%emt 0:00:40]} 3. d4 {[%emt 0:00:12]} cxd4 {[%emt 0:01:01]} 4. Nxd4 {[%emt 0:00:09]} Nf6 {[%emt 0:01:24]} 5. Nc3 {[%emt 0:00:20]} e6 {[%emt 0:01:18]} 6. Be2 {[%emt 0:01:23]} Be7 {[%emt 0:03:24]} 7. O-O {[%emt 0:00:31]} O-O {[%emt 0:00:49]} 8. Be3 {[%emt 0:02:07]} Nc6 {[%emt 0:02:56]} 9. Kh1 {[%emt 0:02:17]} e5 {[%emt 0:07:32]} 10. Nb3 {[%emt 0:03:28]} Be6 {[%emt 0:01:59]} 11. Bf3 {[%emt 0:01:44]} Na5 {[%emt 0:07:27]} 12. Nxa5 {[%emt 0:08:20]} Qxa5 {[%emt 0:00:54]} 13. Qd2 {[%emt 0:01:38]} Qc7 {[%emt 0:10:38]} 14. a4 {[%emt 0:07:41]} b6 {[%emt 0:05:45]} 15. Bg5 {[%emt 0:09:41]} Rac8 {[%emt 0:02:48]} 16. Be2 {[%emt 0:16:00]} h6 {[%emt 0:15:44]} 17. Bxf6 {[%emt 0:06:52]} Bxf6 {[%emt 0:00:04]} 18. Ba6 {[%emt 0:01:15]} Rcd8 {[%emt 0:02:00]} 19. Rad1 {[%emt 0:02:18]} Kh8 {[%emt 0:04:17]} 20. Qe2 {[%emt 0:06:55]} Bg5 {[%emt 0:03:49]} 21. Nd5 {[%emt 0:01:49]} Qc6 {[%emt 0:02:26]} 22. Bb5 {[%emt 0:02:43]} Qb7 {[%emt 0:01:35]} 23. Nb4 {[%emt 0:06:01]} Qc7 {[%emt 0:04:25]} 24. b3 {[%emt 0:08:11]} f5 {[%emt 0:04:19]} 25. f3 {[%emt 0:01:57]} Qf7 {[%emt 0:02:22]} 26. exf5 {[%emt 0:02:34]} Bxf5 {[%emt 0:00:33]} 27. Bc4 {[%emt 0:03:25]} Qg6 {[%emt 0:03:48]} 28. Bd3 {[%emt 0:00:41]} Bxd3 {[%emt 0:01:59]} 29. Rxd3 {[%emt 0:01:29]} e4 {[%emt 0:01:08]} 30. Rdd1 {[%emt 0:02:36]} Rde8 {[%emt 0:04:30]} 31. fxe4 {[%emt 0:00:31]} Rxf1+ {[%emt 0:00:12]} 32. Qxf1 {[%emt 0:00:06]} Qxe4 {[%emt 0:00:24]} 33. Nd3 {[%emt 0:00:28]} d5 {[%emt 0:01:27]} 34. Re1 {[%emt 0:00:55]} Be3 {[%emt 0:00:04]} 35. Qf3 {[%emt 0:00:39]} Qxf3 {[%emt 0:01:53]} 36. gxf3 {[%emt 0:00:03]} d4 {[%emt 0:00:18]} 37. h4 {[%emt 0:00:57]} g5 {[%emt 0:01:45]} 38. hxg5 {[%emt 0:00:08]} hxg5 {[%emt 0:00:04]} 39. Kg2 {[%emt 0:00:20]} Kg7 {[%emt 0:00:07]} 40. Nb4 {[%emt 0:01:02]} Rc8 {[%emt 0:01:17]} 41. Re2 {[%emt 0:00:24]} Rc5 {[%emt 0:00:47]} 42. Kg3 {[%emt 0:00:36]} Kf6 {[%emt 0:00:36]} 43. c4 {[%emt 0:00:33]} dxc3 {[%emt 0:00:29]} 44. Rxe3 {[%emt 0:00:05]} c2 {[%emt 0:00:04]} 45. Nxc2 {[%emt 0:00:33]} Rxc2 {[%emt 0:00:08]} 1/2-1/2

[Event "9th RTU Open 2019"]
[Site "Riga"]
[Date "2019.08.09"]
[Round "7.25"]
[White "Lazavik, Denis"]
[Black "Kjartansson, Gudmundur"]
[Result "1/2-1/2"]
[ECO "D76"]
[WhiteElo "2339"]
[BlackElo "2470"]
[Annotator "ChessBase"]
[PlyCount "101"]
[EventDate "2019.08.05"]
[EventType "swiss"]
[EventCountry "LAT"]
[SourceTitle "playchess.com"]
[Source "ChessBase"]
[SourceQuality "1"]
[TimeControl "5400+30"]

1. d4 {[%emt 0:00:00]} Nf6 {[%emt 0:00:00]} 2. c4 {[%emt 0:00:13]} g6 {[%emt 0:00:01]} 3. g3 {[%emt 0:00:25]} Bg7 {[%emt 0:00:05]} 4. Bg2 {[%emt 0:00:14]} d5 {[%emt 0:00:38]} 5. cxd5 {[%emt 0:00:17]} Nxd5 {[%emt 0:00:03]} 6. Nf3 {[%emt 0:00:10]} O-O {[%emt 0:00:07]} 7. O-O {[%emt 0:00:07]} Nc6 {[%emt 0:00:34]} 8. Nc3 {[%emt 0:02:59]} Nb6 {[%emt 0:00:04]} 9. e3 {[%emt 0:00:18]} Re8 {[%emt 0:03:12]} 10. Re1 {[%emt 0:00:46]} h6 {[%emt 0:02:00]} 11. h3 {[%emt 0:02:03]} e5 {[%emt 0:02:47]} 12. d5 {[%emt 0:08:32]} Na5 {[%emt 0:00:23]} 13. e4 {[%emt 0:05:42]} c6 {[%emt 0:00:13]} 14. b4 {[%emt 0:10:15]} Nac4 {[%emt 0:01:12]} 15. dxc6 {[%emt 0:01:38]} bxc6 {[%emt 0:00:32]} 16. Qc2 {[%emt 0:03:45]} Be6 {[%emt 0:02:05]} 17. Nd2 {[%emt 0:12:59]} Qe7 {[%emt 0:06:25]} 18. Rb1 {[%emt 0:01:50]} Nxd2 {[%emt 0:15:52]} 19. Bxd2 {[%emt 0:01:51]} Nc4 {[%emt 0:00:09]} 20. Bc1 {[%emt 0:00:30]} a5 {[%emt 0:00:39]} 21. b5 {[%emt 0:05:23]} cxb5 {[%emt 0:01:22]} 22. Rxb5 {[%emt 0:00:28]} Rec8 {[%emt 0:00:30]} 23. Qb1 {[%emt 0:01:34]} Na3 {[%emt 0:02:20]} 24. Nd5 {[%emt 0:01:54]} Bxd5 {[%emt 0:00:30]} 25. Bxa3 {[%emt 0:00:06]} Qxa3 {[%emt 0:00:39]} 26. exd5 {[%emt 0:00:50]} Ra7 {[%emt 0:09:21]} 27. Qb3 {[%emt 0:00:55]} Qxb3 {[%emt 0:04:15]} 28. axb3 {[%emt 0:00:06]} f5 {[%emt 0:01:08]} 29. d6 {[%emt 0:02:19]} Rd8 {[%emt 0:03:07]} 30. Rd1 {[%emt 0:00:17]} Rad7 {[%emt 0:04:07]} 31. Rxa5 {[%emt 0:00:29]} Rxd6 {[%emt 0:00:09]} 32. Rad5 {[%emt 0:00:22]} Rxd5 {[%emt 0:00:16]} 33. Rxd5 {[%emt 0:00:05]} Rc8 {[%emt 0:04:05]} 34. Rd2 {[%emt 0:00:27]} e4 {[%emt 0:00:19]} 35. Bf1 {[%emt 0:00:32]} Rc1 {[%emt 0:01:20]} 36. Kg2 {[%emt 0:00:13]} Kf8 {[%emt 0:01:40]} 37. Bc4 {[%emt 0:00:47]} Ke7 {[%emt 0:00:19]} 38. h4 {[%emt 0:00:20]} Bc3 {[%emt 0:03:53]} 39. Ra2 {[%emt 0:00:51]} Bd4 {[%emt 0:02:30]} 40. Rd2 {[%emt 0:00:12]} Bb6 {[%emt 0:01:13]} 41. Ra2 {[%emt 0:00:17]} Rd1 {[%emt 0:08:48]} 42. Re2 {[%emt 0:02:59]} Kf6 {[%emt 0:01:45]} 43. Rc2 {[%emt 0:00:43]} Ke5 {[%emt 0:06:56]} 44. Be2 {[%emt 0:01:58]} Rb1 {[%emt 0:04:36]} 45. Rc6 {[%emt 0:02:31]} Rxb3 {[%emt 0:01:09]} 46. Rxg6 {[%emt 0:00:47]} Rb2 {[%emt 0:00:08]} 47. Kf1 {[%emt 0:00:04]} Rb1+ {[%emt 0:01:41]} 48. Kg2 {[%emt 0:00:06]} Rb2 {[%emt 0:00:06]} 49. Kf1 {[%emt 0:00:03]} Rb1+ {[%emt 0:02:38]} 50. Kg2 {[%emt 0:00:04]} Rb2 {[%emt 0:00:02]} 51. Kf1 {[%emt 0:01:00]} 1/2-1/2

[Event "9th RTU Open 2019"]
[Site "Riga"]
[Date "2019.08.09"]
[Round "7.29"]
[White "Kopylov, Michael"]
[Black "Chukavin, Kirill"]
[Result "1/2-1/2"]
[ECO "E04"]
[WhiteElo "2415"]
[BlackElo "2300"]
[Annotator "NA"]
[PlyCount "57"]
[EventDate "2019.08.05"]
[EventType "swiss"]
[EventCountry "LAT"]
[SourceTitle "playchess.com"]
[Source "ChessBase"]
[SourceQuality "1"]
[TimeControl "5400+30"]

1. d4 {[%emt 0:00:00]} Nf6 {[%emt 0:00:00]} 2. c4 {[%emt 0:00:00]} e6 {[%emt 0:00:00]} 3. g3 {[%emt 0:00:05]} d5 {[%emt 0:00:00]} 4. Bg2 {[%emt 0:00:11]} dxc4 {[%emt 0:00:12]} 5. Nf3 {[%emt 0:00:16]} Bd7 {[%emt 0:00:14]} 6. Ne5 {[%emt 0:01:23]} Bc6 {[%emt 0:00:11]} 7. Nxc6 {[%emt 0:00:08]} Nxc6 {[%emt 0:00:06]} 8. e3 {[%emt 0:00:08]} Qd7 {[%emt 0:00:29]} 9. O-O {[%emt 0:00:23]} O-O-O {[%emt 0:00:11]} 10. Nd2 {[%emt 0:03:45]} e5 {[%emt 0:00:11]} 11. Nxc4 {[%emt 0:00:10]} exd4 {[%emt 0:00:07]} 12. Qb3 {[%emt 0:00:36]} Nd5 {[%emt 0:00:32]} 13. Rd1 {[%emt 0:01:49]} Bc5 {[%emt 0:02:26]} 14. Bd2 {[%emt 0:14:28]} Qe6 {[%emt 0:11:51]} 15. Qb5 {[%emt 0:10:00]} dxe3 {[%emt 0:16:14]} 16. Qxc5 {[%emt 0:02:02]} exd2 {[%emt 0:00:28]} 17. Rxd2 {[%emt 0:03:19]} Nb6 {[%emt 0:01:26]} 18. Rc2 {[%emt 0:09:10]} Nxc4 {[%emt 0:52:58]} 19. Rxc4 {[%emt 0:01:29]} Qe5 {[%emt 0:02:59]} 20. Bxc6 {[%emt 0:16:08]} Qxc5 {[%emt 0:00:06]} 21. Rxc5 {[%emt 0:00:05]} bxc6 {[%emt 0:00:03]} 22. Rxc6 {[%emt 0:00:09]} Kb7 {[%emt 0:03:00]} 23. Rac1 {[%emt 0:01:20]} Rd1+ {[%emt 0:00:18]} 24. Kg2 {[%emt 0:00:13]} Rxc1 {[%emt 0:00:12]} 25. Rxc1 {[%emt 0:00:03]} Rd8 {[%emt 0:00:36]} 26. Rc2 {[%emt 0:00:15]} Kb6 {[%emt 0:01:09]} 27. Kf3 {[%emt 0:00:18]} c5 {[%emt 0:00:51]} 28. Ke3 {[%emt 0:03:23]} Kb5 {[%emt 0:00:33]} 29. Rc3 {[%emt 0:05:07]} 1/2-1/2

[Event "9th RTU Open 2019"]
[Site "Riga"]
[Date "2019.08.09"]
[Round "7.30"]
[White "Ramsdal, Jens Albert"]
[Black "Low, Zhen Yu Cyrus"]
[Result "0-1"]
[ECO "A48"]
[WhiteElo "2257"]
[BlackElo "2413"]
[Annotator "NA"]
[PlyCount "78"]
[EventDate "2019.08.05"]
[EventType "swiss"]
[EventCountry "LAT"]
[SourceTitle "playchess.com"]
[Source "ChessBase"]
[SourceQuality "1"]
[TimeControl "5400+30"]

1. d4 {[%emt 0:00:00]} Nf6 {[%emt 0:00:00]} 2. Bf4 {[%emt 0:00:00]} g6 {[%emt 0:00:00]} 3. Nd2 {[%emt 0:00:16]} Bg7 {[%emt 0:00:31]} 4. c3 {[%emt 0:01:39]} O-O {[%emt 0:00:57]} 5. e4 {[%emt 0:01:10]} d6 {[%emt 0:09:09]} 6. Ngf3 {[%emt 0:01:41]} Nc6 {[%emt 0:00:09]} 7. Bb5 {[%emt 0:09:01]} Bd7 {[%emt 0:07:55]} 8. O-O {[%emt 0:04:12]} e5 {[%emt 0:11:55]} 9. Bg5 {[%emt 0:02:36]} h6 {[%emt 0:02:28]} 10. Bh4 {[%emt 0:00:05]} Qe8 {[%emt 0:08:16]} 11. Bxc6 {[%emt 0:04:30]} Bxc6 {[%emt 0:00:39]} 12. d5 {[%emt 0:03:50]} Bd7 {[%emt 0:00:39]} 13. Bxf6 {[%emt 0:00:24]} Bxf6 {[%emt 0:00:02]} 14. b4 {[%emt 0:01:05]} Be7 {[%emt 0:08:30]} 15. Nb3 {[%emt 0:05:19]} f5 {[%emt 0:01:48]} 16. Nfd2 {[%emt 0:00:01]} c6 {[%emt 0:00:45]} 17. Nc4 {[%emt 0:04:26]} Qf7 {[%emt 0:02:07]} 18. exf5 {[%emt 0:03:14]} Bxf5 {[%emt 0:07:32]} 19. Ne3 {[%emt 0:01:38]} cxd5 {[%emt 0:00:42]} 20. Qxd5 {[%emt 0:03:24]} Qxd5 {[%emt 0:03:43]} 21. Nxd5 {[%emt 0:00:02]} Bg5 {[%emt 0:00:11]} 22. g3 {[%emt 0:06:49]} Bh3 {[%emt 0:01:34]} 23. Rfd1 {[%emt 0:03:06]} Rf7 {[%emt 0:02:19]} 24. Nd2 {[%emt 0:00:21]} Bg4 {[%emt 0:03:45]} 25. Ne4 {[%emt 0:02:19]} Bxd1 {[%emt 0:00:07]} 26. Rxd1 {[%emt 0:00:06]} Rd8 {[%emt 0:01:35]} 27. c4 {[%emt 0:05:50]} Kf8 {[%emt 0:00:42]} 28. Kf1 {[%emt 0:02:15]} Ke8 {[%emt 0:04:17]} 29. Ke2 {[%emt 0:00:53]} Kd7 {[%emt 0:02:22]} 30. Ndc3 {[%emt 0:05:54]} Ke6 {[%emt 0:04:17]} 31. c5 {[%emt 0:09:03]} d5 {[%emt 0:00:10]} 32. Nd6 {[%emt 0:00:12]} Rfd7 {[%emt 0:00:07]} 33. Nxd5 {[%emt 0:00:44]} Be7 {[%emt 0:01:35]} 34. Nxe7 {[%emt 0:00:40]} Rxe7 {[%emt 0:00:15]} 35. Kd3 {[%emt 0:05:08]} b6 {[%emt 0:02:28]} 36. Kc4 {[%emt 0:00:02]} Rc7 {[%emt 0:00:42]} 37. Rd3 {[%emt 0:00:15]} a6 {[%emt 0:03:36]} 38. a4 {[%emt 0:01:36]} Rc6 {[%emt 0:01:22]} 39. Rd5 {[%emt 0:05:21]} b5+ {[%emt 0:01:35] Kd4} 0-1

[Event "9th RTU Open 2019"]
[Site "Riga"]
[Date "2019.08.09"]
[Round "7.31"]
[White "Akhvlediani, Irakli"]
[Black "Krivonosov, Oleg"]
[Result "1/2-1/2"]
[ECO "E08"]
[WhiteElo "2259"]
[BlackElo "2416"]
[Annotator "NA"]
[PlyCount "63"]
[EventDate "2019.08.05"]
[EventType "swiss"]
[EventCountry "LAT"]
[SourceTitle "playchess.com"]
[Source "ChessBase"]
[SourceQuality "1"]
[TimeControl "5400+30"]

1. d4 {[%emt 0:00:00]} d5 {[%emt 0:00:00]} 2. c4 {[%emt 0:00:00]} e6 {[%emt 0:00:00]} 3. Nf3 {[%emt 0:00:00]} Nf6 {[%emt 0:00:01]} 4. g3 {[%emt 0:00:00]} Bb4+ {[%emt 0:00:13]} 5. Bd2 {[%emt 0:00:00]} Be7 {[%emt 0:00:06]} 6. Bg2 {[%emt 0:00:00]} O-O {[%emt 0:00:13]} 7. O-O {[%emt 0:00:00]} c6 {[%emt 0:00:34]} 8. Qc2 {[%emt 0:00:03]} Nbd7 {[%emt 0:02:02]} 9. Bf4 {[%emt 0:00:11]} b6 {[%emt 0:00:32]} 10. Rd1 {[%emt 0:00:09]} Ba6 {[%emt 0:00:38]} 11. Ne5 {[%emt 0:00:19]} Rc8 {[%emt 0:00:17]} 12. cxd5 {[%emt 0:00:47]} Nxd5 {[%emt 0:00:15]} 13. Nc3 {[%emt 0:09:23]} Nxc3 {[%emt 0:01:20]} 14. bxc3 {[%emt 0:00:24]} Nxe5 {[%emt 0:00:06]} 15. Bxe5 {[%emt 0:00:18]} Bc4 {[%emt 0:00:10]} 16. Be4 {[%emt 0:00:13]} h6 {[%emt 0:01:22]} 17. Bh7+ {[%emt 0:00:04]} Kh8 {[%emt 0:00:03]} 18. Bd3 {[%emt 0:00:03]} Bxd3 {[%emt 0:00:15]} 19. Rxd3 {[%emt 0:00:04]} f6 {[%emt 0:01:12]} 20. Bf4 {[%emt 0:00:14]} Bd6 {[%emt 0:00:05]} 21. Bxd6 {[%emt 0:02:00]} Qxd6 {[%emt 0:00:09]} 22. c4 {[%emt 0:01:26]} e5 {[%emt 0:15:01]} 23. dxe5 {[%emt 0:06:39]} Qxe5 {[%emt 0:00:10]} 24. Rad1 {[%emt 0:00:08]} Rfe8 {[%emt 0:09:32]} 25. e3 {[%emt 0:11:50]} Qe4 {[%emt 0:06:51]} 26. Qb3 {[%emt 0:00:13]} Rc7 {[%emt 0:04:34]} 27. Rd4 {[%emt 0:00:51]} Qf5 {[%emt 0:02:31]} 28. Rd6 {[%emt 0:03:04]} Kh7 {[%emt 0:04:23]} 29. R1d4 {[%emt 0:18:26]} Re5 {[%emt 0:07:03]} 30. Rd8 {[%emt 0:03:43]} c5 {[%emt 0:02:48]} 31. R4d5 {[%emt 0:07:55]} Rce7 {[%emt 0:04:21]} 32. Rxe5 {[%emt 0:02:20]} 1/2-1/2

[Event "9th RTU Open 2019"]
[Site "Riga"]
[Date "2019.08.09"]
[Round "7.33"]
[White "Galchenko, Matvey"]
[Black "Siniauski, Artsiom"]
[Result "1-0"]
[ECO "C01"]
[WhiteElo "2383"]
[BlackElo "2205"]
[Annotator "NA"]
[PlyCount "119"]
[EventDate "2019.08.05"]
[EventType "swiss"]
[EventCountry "LAT"]
[SourceTitle "playchess.com"]
[Source "ChessBase"]
[SourceQuality "1"]
[TimeControl "5400+30"]

1. e4 {[%emt 0:00:00]} e6 {[%emt 0:00:00]} 2. d4 {[%emt 0:00:00]} d5 {[%emt 0:00:00]} 3. Bd3 {[%emt 0:00:15]} dxe4 {[%emt 0:00:31]} 4. Bxe4 {[%emt 0:00:05]} Nf6 {[%emt 0:00:19]} 5. Bf3 {[%emt 0:00:14]} c5 {[%emt 0:00:27]} 6. Ne2 {[%emt 0:00:16]} Nc6 {[%emt 0:00:36]} 7. Be3 {[%emt 0:00:23]} cxd4 {[%emt 0:00:51]} 8. Nxd4 {[%emt 0:00:05]} Ne5 {[%emt 0:00:18]} 9. Nc3 {[%emt 0:01:34]} Bb4 {[%emt 0:01:25]} 10. Ndb5 {[%emt 0:01:09]} Nxf3+ {[%emt 0:03:00]} 11. Qxf3 {[%emt 0:01:02]} a6 {[%emt 0:03:35]} 12. Rd1 {[%emt 0:03:41]} Qe7 {[%emt 0:06:00]} 13. a3 {[%emt 0:01:35]} axb5 {[%emt 0:17:52]} 14. axb4 {[%emt 0:00:06]} Qxb4 {[%emt 0:00:10]} 15. Bd4 {[%emt 0:15:45]} Nd5 {[%emt 0:25:09]} 16. Bxg7 {[%emt 0:11:51]} Rg8 {[%emt 0:00:31]} 17. Be5 {[%emt 0:01:22]} Bd7 {[%emt 0:06:24]} 18. O-O {[%emt 0:06:39]} Qg4 {[%emt 0:09:31]} 19. Qxg4 {[%emt 0:01:47]} Rxg4 {[%emt 0:00:05]} 20. Nxd5 {[%emt 0:00:51]} exd5 {[%emt 0:00:04]} 21. f3 {[%emt 0:04:15]} Rc4 {[%emt 0:00:30]} 22. Rxd5 {[%emt 0:03:26]} Rxc2 {[%emt 0:00:45]} 23. Rfd1 {[%emt 0:00:25]} Bc6 {[%emt 0:02:55]} 24. Rd6 {[%emt 0:01:25]} Kf8 {[%emt 0:02:07]} 25. R6d4 {[%emt 0:12:45]} Rc4 {[%emt 0:03:13]} 26. R4d2 {[%emt 0:01:41]} Re8 {[%emt 0:01:52]} 27. Bd4 {[%emt 0:00:14]} Ra4 {[%emt 0:00:46]} 28. Kf2 {[%emt 0:00:55]} Kg8 {[%emt 0:01:19]} 29. g4 {[%emt 0:02:01]} Rd8 {[%emt 0:01:16]} 30. Bf6 {[%emt 0:00:36]} Rxd2+ {[%emt 0:00:40]} 31. Rxd2 {[%emt 0:00:01]} h6 {[%emt 0:00:35]} 32. Kg3 {[%emt 0:02:11]} Kh7 {[%emt 0:02:41]} 33. Rd8 {[%emt 0:01:30]} Rb4 {[%emt 0:01:39]} 34. Bc3 {[%emt 0:01:34]} Rb3 {[%emt 0:01:32]} 35. Rh8+ {[%emt 0:00:20]} Kg6 {[%emt 0:00:04]} 36. Rg8+ {[%emt 0:00:05]} Kh7 {[%emt 0:00:03]} 37. Rg7+ {[%emt 0:00:03]} Kh8 {[%emt 0:00:04]} 38. Rxf7+ {[%emt 0:00:05]} Kg8 {[%emt 0:00:04]} 39. Rf4 {[%emt 0:00:25]} Kh7 {[%emt 0:03:15]} 40. Rd4 {[%emt 0:01:39]} h5 {[%emt 0:02:30]} 41. h3 {[%emt 0:00:16]} h4+ {[%emt 0:02:34]} 42. Kxh4 {[%emt 0:00:30]} Bxf3 {[%emt 0:00:07]} 43. Kg5 {[%emt 0:00:14]} b4 {[%emt 0:01:14]} 44. Rxb4 {[%emt 0:00:14]} Rxb4 {[%emt 0:00:04]} 45. Bxb4 {[%emt 0:00:03]} Bd1 {[%emt 0:00:23]} 46. Bc3 {[%emt 0:00:46]} Be2 {[%emt 0:00:11]} 47. h4 {[%emt 0:00:04]} Bd1 {[%emt 0:00:13]} 48. h5 {[%emt 0:00:30]} Be2 {[%emt 0:00:09]} 49. Kh4 {[%emt 0:00:09]} Bd1 {[%emt 0:00:07]} 50. g5 {[%emt 0:00:03]} Bc2 {[%emt 0:00:11]} 51. g6+ {[%emt 0:00:04]} Bxg6 {[%emt 0:00:28]} 52. hxg6+ {[%emt 0:00:02]} Kxg6 {[%emt 0:00:06]} 53. Kg4 {[%emt 0:00:10]} Kf7 {[%emt 0:00:09]} 54. Kf5 {[%emt 0:00:18]} Ke7 {[%emt 0:00:04]} 55. Ke5 {[%emt 0:00:07]} Kd7 {[%emt 0:00:04]} 56. Kd5 {[%emt 0:00:06]} Kc7 {[%emt 0:00:04]} 57. Kc5 {[%emt 0:00:28]} Kb8 {[%emt 0:00:07]} 58. Kb6 {[%emt 0:00:03]} Ka8 {[%emt 0:00:04]} 59. Kc7 {[%emt 0:00:05]} Ka7 {[%emt 0:00:05]} 60. Bd4+ {[%emt 0:00:07]} 1-0

[Event "9th RTU Open 2019"]
[Site "Riga"]
[Date "2019.08.09"]
[Round "8.3"]
[White "Puranik, Abhimanyu"]
[Black "Fedorov, Nikita M"]
[Result "1-0"]
[ECO "B48"]
[WhiteElo "2550"]
[BlackElo "1669"]
[Annotator "ChessBase"]
[PlyCount "93"]
[EventDate "2019.08.05"]
[EventType "swiss"]
[EventCountry "LAT"]
[SourceTitle "playchess.com"]
[Source "ChessBase"]
[SourceQuality "1"]
[TimeControl "5400+30"]

1. e4 {[%emt 0:00:00]} c5 {[%emt 0:00:00]} 2. Nf3 {[%emt 0:00:00]} e6 {[%emt 0:00:17]} 3. d4 {[%emt 0:00:00]} cxd4 {[%emt 0:00:07]} 4. Nxd4 {[%emt 0:00:01]} Nc6 {[%emt 0:00:06]} 5. Nc3 {[%emt 0:00:28]} Qc7 {[%emt 0:00:18]} 6. Be3 {[%emt 0:00:18]} a6 {[%emt 0:00:11]} 7. Qd2 {[%emt 0:00:16]} Nf6 {[%emt 0:00:18]} 8. f4 {[%emt 0:00:31]} b5 {[%emt 0:04:43]} 9. e5 {[%emt 0:04:43]} b4 {[%emt 0:01:37]} 10. Ncb5 {[%emt 0:01:24]} axb5 {[%emt 0:00:23]} 11. Nxb5 {[%emt 0:00:05]} Qb8 {[%emt 0:01:00]} 12. exf6 {[%emt 0:00:05]} gxf6 {[%emt 0:01:08]} 13. a4 {[%emt 0:00:34]} bxa3 {[%emt 0:08:26]} 14. bxa3 {[%emt 0:00:09]} Ba6 {[%emt 0:03:22]} 15. Rb1 {[%emt 0:01:35]} Be7 {[%emt 0:08:14]} 16. g3 {[%emt 0:04:21]} h5 {[%emt 0:03:11]} 17. a4 {[%emt 0:09:39]} Bb7 {[%emt 0:04:50]} 18. Bg2 {[%emt 0:08:12]} Rxa4 {[%emt 0:13:55]} 19. O-O {[%emt 0:04:57]} h4 {[%emt 0:08:14]} 20. Nc3 {[%emt 0:11:33]} Rb4 {[%emt 0:04:56]} 21. Ne4 {[%emt 0:07:14]} hxg3 {[%emt 0:05:26]} 22. hxg3 {[%emt 0:00:06]} Ba6 {[%emt 0:04:45]} 23. Rxb4 {[%emt 0:00:32]} Qxb4 {[%emt 0:00:10]} 24. Qxb4 {[%emt 0:12:06]} Nxb4 {[%emt 0:00:13]} 25. Rb1 {[%emt 0:00:20]} Nc6 {[%emt 0:07:59]} 26. Nc5 {[%emt 0:06:51]} Bc8 {[%emt 0:02:27]} 27. Bxc6 {[%emt 0:02:08]} dxc6 {[%emt 0:00:04]} 28. Rb6 {[%emt 0:01:40]} Bxc5 {[%emt 0:08:53]} 29. Bxc5 {[%emt 0:00:05]} Kd7 {[%emt 0:00:05]} 30. Rb3 {[%emt 0:05:40]} e5 {[%emt 0:05:35]} 31. Rd3+ {[%emt 0:04:23]} Ke6 {[%emt 0:00:02]} 32. Rd6+ {[%emt 0:01:26]} Kf5 {[%emt 0:00:08]} 33. Rxc6 {[%emt 0:00:06]} Be6 {[%emt 0:01:03]} 34. Be7 {[%emt 0:03:36]} Rh3 {[%emt 0:00:37]} 35. fxe5 {[%emt 0:01:52]} fxe5 {[%emt 0:00:46]} 36. Bh4 {[%emt 0:00:59]} Kg4 {[%emt 0:00:11]} 37. Rc5 {[%emt 0:02:12]} f6 {[%emt 0:00:40]} 38. Kg2 {[%emt 0:02:43]} Bf7 {[%emt 0:02:58]} 39. Rb5 {[%emt 0:01:15]} Be6 {[%emt 0:01:33]} 40. Rb4+ {[%emt 0:00:36]} Kh5 {[%emt 0:00:06]} 41. Bxf6 {[%emt 0:01:19]} e4 {[%emt 0:00:39]} 42. Bh4 {[%emt 0:00:57]} Bd7 {[%emt 0:00:51]} 43. Rb7 {[%emt 0:00:45]} Bc8 {[%emt 0:00:25]} 44. Rc7 {[%emt 0:00:37]} Bg4 {[%emt 0:00:30]} 45. Rc5+ {[%emt 0:00:34]} Kh6 {[%emt 0:00:05]} 46. Re5 {[%emt 0:00:08]} Bc8 {[%emt 0:01:00]} 47. c4 {[%emt 0:00:14]} 1-0